bitfinex/quotes_SOLUSD_20230703
["timestamp","ask_amount","ask_price","bid_price","bid_amount"]
[1688416000063,78.697,19.213,19.202,55.0]
[1688416000272,78.697,19.213,19.203,22.026]
[1688416008783,78.697,19.213,19.2,22.03]
[1688416009167,78.697,19.213,19.193,10.83719922]
[1688416009168,20.0,19.212,19.199,22.031]
[1688416009473,182.16,19.209,19.199,22.031]
[1688416009773,22.026,19.205,19.198,22.032]
[1688416010076,22.026,19.205,19.199,55.0]
[1688416010457,22.026,19.205,19.199,77.032]
[1688416010777,22.026,19.205,19.199,55.0]
[1688416011073,22.026,19.205,19.199,77.032]
[1688416012371,22.025,19.206,19.199,77.032]
[1688416013182,22.025,19.206,19.199,55.0]
[1688416013358,22.025,19.206,19.199,77.032]
[1688416016779,22.024,19.207,19.199,77.032]
[1688416017672,56.687,19.211,19.199,77.032]
[1688416017874,22.022,19.208,19.203,22.026]
[1688416018070,22.022,19.208,19.2,32.29]
[1688416018283,22.022,19.208,19.202,22.028]
[1688416018577,22.022,19.208,19.199,56.721]
[1688416018877,22.022,19.208,19.2,55.0]
[1688416020065,22.022,19.208,19.202,22.028]
[1688416028167,22.022,19.208,19.2,22.03]
[1688416033177,56.681,19.213,19.201,55.0]
[1688416033371,22.02,19.21,19.204,22.025]
[1688416037484,22.02,19.21,19.205,55.0]
[1688416037797,22.02,19.21,19.206,22.023]
[1688416038005,22.02,19.21,19.201,56.715]
[1688416038174,22.02,19.21,19.2,135.779]
[1688416038175,56.671,19.217,19.207,22.022]
[1688416038379,56.656,19.221,19.208,55.0]
[1688416038578,56.656,19.221,19.213,22.016]
[1688416038579,22.011,19.218,19.213,22.016]
[1688416038880,22.011,19.218,19.214,77.014]
[1688416040299,22.01,19.219,19.214,77.014]
[1688416040488,22.01,19.219,19.214,22.014]
[1688416041396,22.01,19.219,19.211,56.685]
[1688416041688,22.01,19.219,19.212,55.0]
[1688416043098,22.01,19.219,19.214,22.015]
[1688416043988,22.01,19.219,19.213,22.015]
[1688416045381,22.01,19.219,19.21,56.686]
[1688416045578,22.01,19.219,19.211,22.017]
[1688416049802,125.397,19.219,19.209,90.4367]
[1688416049990,125.397,19.219,19.206,56.7]
[1688416050192,125.397,19.219,19.207,75.0]
[1688416050694,125.397,19.219,19.206,22.023]
[1688416050887,78.69,19.215,19.205,22.024]
[1688416052090,78.69,19.215,19.204,22.025]
[1688416056111,78.69,19.215,19.203,22.026]
[1688416056407,78.69,19.215,19.204,55.0]
[1688416056790,78.69,19.215,19.204,77.026]
[1688416057911,78.69,19.215,19.201,97.2541]
[1688416058207,78.69,19.215,19.202,55.0]
[1688416058403,78.69,19.215,19.201,119.2831]
[1688416059808,78.69,19.215,19.202,55.0]
[1688416061008,78.69,19.215,19.202,77.028]
[1688416061408,78.69,19.215,19.202,55.0]
[1688416061615,78.69,19.215,19.202,77.028]
[1688416062997,78.69,19.215,19.202,55.0]
[1688416065015,78.69,19.215,19.202,77.028]
[1688416065513,55.0,19.214,19.201,119.2831]
[1688416065818,182.142,19.211,19.201,119.2831]
[1688416066112,182.142,19.211,19.201,22.029]
[1688416069503,182.142,19.211,19.203,22.027]
[1688416070205,182.142,19.211,19.202,77.027]
[1688416070704,182.142,19.211,19.201,22.028]
[1688416070905,182.142,19.211,19.202,22.028]
[1688416071317,22.019,19.211,19.202,22.028]
[1688416071508,22.019,19.211,19.203,55.0]
[1688416071703,22.019,19.211,19.204,22.026]
[1688416073714,125.449,19.211,19.202,22.028]
[1688416075119,22.019,19.211,19.202,22.028]
[1688416075323,22.019,19.211,19.204,22.025]
[1688416076028,22.019,19.211,19.203,77.026]
[1688416077026,22.019,19.211,19.2,32.07]
[1688416077327,22.019,19.211,19.202,22.028]
[1688416080636,22.019,19.211,19.201,77.029]
[1688416083634,22.019,19.211,19.201,22.029]
[1688416087025,22.019,19.211,19.202,55.0]
[1688416087226,22.019,19.211,19.204,22.025]
[1688416097648,22.019,19.211,19.203,22.027]
[1688416097829,22.019,19.211,19.204,55.0]
[1688416098535,22.019,19.211,19.204,77.026]
[1688416098837,22.019,19.211,19.204,55.0]
[1688416099444,22.019,19.211,19.204,77.026]
[1688416105140,22.019,19.211,19.204,55.0]
[1688416105332,22.019,19.211,19.204,77.026]
[1688416110549,22.019,19.211,19.204,22.026]
[1688416110847,125.449,19.211,19.202,22.028]
[1688416114931,32.31,19.21,19.197,22.033]
[1688416115248,182.18,19.207,19.197,22.034]
[1688416119251,78.724,19.207,19.197,22.034]
[1688416120648,20.0,19.206,19.197,22.034]
[1688416120953,22.027,19.204,19.197,22.034]
[1688416122255,22.027,19.204,19.196,22.034]
[1688416123844,22.027,19.204,19.195,22.035]
[1688416124649,22.027,19.204,19.198,22.033]
[1688416127058,22.027,19.204,19.193,103.526]
[1688416127059,125.495,19.204,19.191,56.743]
[1688416127856,22.027,19.204,19.19,135.608]
[1688416128066,22.027,19.204,19.195,22.036]
[1688416128555,22.027,19.204,19.196,55.0]
[1688416128861,22.027,19.204,19.198,22.033]
[1688416132560,22.027,19.204,19.197,22.034]
[1688416141068,22.027,19.204,19.198,55.0]
[1688416141267,22.025,19.206,19.199,22.031]
[1688416141456,22.024,19.207,19.2,87.31]
[1688416141653,22.024,19.207,19.202,22.028]
[1688416143171,22.023,19.208,19.202,22.028]
[1688416147378,56.687,19.211,19.202,22.028]
[1688416147876,22.021,19.209,19.202,22.028]
[1688416151968,25.43911902,19.216,19.203,55.0]
[1688416152281,22.016,19.213,19.206,78.722]
[1688416152469,22.016,19.213,19.207,55.0]
[1688416152665,22.016,19.213,19.208,22.021]
[1688416157789,22.016,19.213,19.207,22.022]
[1688416157976,22.016,19.213,19.207,22.023]
[1688416158286,22.016,19.213,19.206,22.023]
[1688416158775,22.016,19.213,19.205,22.024]
[1688416179497,22.016,19.213,19.206,55.0]
[1688416179698,22.016,19.213,19.208,22.021]
[1688416182910,22.016,19.213,19.207,22.022]
[1688416185323,22.016,19.213,19.205,22.024]
[1688416187502,22.016,19.213,19.206,55.0]
[1688416187700,22.016,19.213,19.208,22.021]
[1688416191809,22.016,19.213,19.204,22.025]
[1688416200419,32.1978173,19.213,19.203,22.026]
[1688416201010,10.1818173,19.212,19.203,22.026]
[1688416201210,78.709,19.21,19.203,22.026]
[1688416203117,22.02,19.21,19.203,22.026]
[1688416206816,78.709,19.21,19.203,22.026]
[1688416207221,22.02,19.21,19.203,22.026]
[1688416213330,19.52,19.21,19.203,22.026]
[1688416222245,19.52,19.21,19.205,22.024]
[1688416226946,19.52,19.21,19.206,55.0]
[1688416227133,19.52,19.21,19.207,22.022]
[1688416227331,19.52,19.21,19.208,55.0]
[1688416229345,19.52,19.21,19.207,55.0]
[1688416229644,19.52,19.21,19.201,95.1569]
[1688416229949,19.52,19.21,19.205,22.025]
[1688416230140,19.52,19.21,19.206,55.0]
[1688416232037,19.52,19.21,19.205,22.025]
[1688416234042,19.52,19.21,19.204,22.025]
[1688416234244,19.52,19.21,19.205,55.0]
[1688416234751,19.52,19.21,19.205,77.025]
[1688416234946,19.52,19.21,19.205,55.0]
[1688416236846,19.52,19.21,19.205,77.025]
[1688416239847,19.52,19.21,19.203,22.027]
[1688416240054,19.52,19.21,19.201,95.1569]
[1688416240349,19.52,19.21,19.2,89.027]
[1688416240555,155.265,19.21,19.194,97.069]
[1688416240844,155.265,19.21,19.196,22.035]
[1688416241051,165.4468173,19.21,19.197,20.0]
[1688416241236,165.4468173,19.21,19.196,22.034]
[1688416241435,165.4468173,19.21,19.194,153.803]
[1688416241436,165.4468173,19.21,19.197,42.034]
[1688416245349,155.265,19.21,19.197,42.034]
[1688416245555,155.265,19.21,19.198,55.0]
[1688416245755,155.265,19.21,19.201,22.029]
[1688416248553,155.265,19.21,19.2,22.03]
[1688416249061,155.265,19.21,19.198,22.032]
[1688416250948,55.0,19.209,19.198,22.032]
[1688416251151,78.725,19.206,19.198,22.032]
[1688416252663,22.024,19.206,19.198,22.032]
[1688416254369,56.689,19.211,19.202,22.028]
[1688416254545,22.02,19.21,19.202,78.74]
[1688416254751,22.02,19.21,19.205,22.025]
[1688416254946,22.017,19.212,19.205,22.025]
[1688416255265,56.675,19.215,19.207,78.72]
[1688416255266,22.014,19.215,19.207,78.72]
[1688416255566,22.013,19.216,19.208,55.0]
[1688416255971,22.013,19.216,19.21,22.019]
[1688416257350,22.013,19.216,19.209,22.019]
[1688416257548,22.013,19.216,19.21,55.0]
[1688416260951,22.013,19.216,19.205,67.53919922]
[1688416261173,125.416,19.216,19.207,22.022]
[1688416261371,125.416,19.216,19.208,55.0]
[1688416262847,125.416,19.216,19.205,22.024]
[1688416263057,125.416,19.216,19.206,75.0]
[1688416264560,125.416,19.216,19.206,97.024]
[1688416271676,22.013,19.216,19.206,97.024]
[1688416284387,125.416,19.216,19.206,97.024]
[1688416284687,125.416,19.216,19.206,75.0]
[1688416285875,125.416,19.216,19.206,97.023]
[1688416293183,22.013,19.216,19.206,97.023]
[1688416296287,32.11,19.22,19.21,32.31]
[1688416296288,56.661,19.22,19.21,32.31]
[1688416296474,22.012,19.217,19.213,22.016]
[1688416296780,22.012,19.217,19.214,55.0]
[1688416296966,22.012,19.217,19.214,77.014]
[1688416297892,22.012,19.217,19.214,55.0]
[1688416299288,22.012,19.217,19.21,32.31]
[1688416299494,22.012,19.217,19.212,22.017]
[1688416299684,22.012,19.217,19.21,54.329]
[1688416299997,22.012,19.217,19.21,22.019]
[1688416301098,22.012,19.217,19.211,55.0]
[1688416302800,125.41,19.217,19.207,97.5381]
[1688416303096,125.41,19.217,19.208,77.021]
[1688416305185,22.012,19.217,19.212,22.017]
[1688416305388,22.012,19.217,19.213,77.015]
[1688416306193,22.012,19.217,19.213,55.0]
[1688416306529,22.012,19.217,19.213,77.015]
[1688416310199,22.012,19.217,19.213,55.0]
[1688416313007,22.012,19.217,19.21,32.31]
[1688416313388,22.012,19.217,19.211,55.0]
[1688416314408,22.012,19.217,19.211,77.018]
[1688416314904,56.655,19.222,19.211,77.018]
[1688416315684,22.012,19.217,19.211,77.018]
[1688416322501,22.012,19.217,19.211,22.018]
[1688416324112,22.012,19.217,19.212,55.0]
[1688416324316,22.012,19.217,19.212,77.016]
[1688416330198,22.012,19.217,19.207,97.5381]
[1688416331614,22.012,19.217,19.208,55.0]
[1688416332111,22.012,19.217,19.209,22.02]
[1688416332306,22.012,19.217,19.21,55.0]
[1688416333298,22.012,19.217,19.21,77.018]
[1688416333500,22.012,19.217,19.21,133.707]
[1688416333706,22.012,19.217,19.21,165.777]
[1688416334017,56.659,19.221,19.21,165.777]
[1688416335323,22.011,19.217,19.21,144.54419922]
[1688416336019,22.011,19.217,19.21,176.85419922]
[1688416337223,22.011,19.217,19.21,144.54419922]
[1688416342223,22.011,19.217,19.21,87.85519922]
[1688416353741,22.01,19.218,19.21,87.85519922]
[1688416354033,22.009,19.22,19.211,10.83719922]
[1688416354240,22.009,19.22,19.214,22.014]
[1688416354622,22.009,19.22,19.213,56.679]
[1688416354623,22.009,19.22,19.216,22.012]
[1688416356247,22.009,19.22,19.215,22.013]
[1688416356831,22.009,19.22,19.211,56.685]
[1688416357032,22.009,19.22,19.212,55.0]
[1688416358146,22.009,19.22,19.215,22.013]
[1688416368252,103.359,19.225,19.215,22.013]
[1688416368440,56.647,19.225,19.216,55.0]
[1688416368636,22.006,19.222,19.216,55.0]
[1688416368842,22.006,19.222,19.217,22.01]
[1688416369142,22.006,19.222,19.218,55.0]
[1688416369347,22.006,19.222,19.218,77.01]
[1688416371951,56.647,19.225,19.218,77.01]
[1688416372159,26.18566003,19.23,19.218,77.01]
[1688416372346,32.11,19.24,19.22,32.31]
[1688416372541,21.997,19.23,19.226,22.001]
[1688416372851,21.996,19.231,19.226,22.001]
[1688416373056,103.3,19.236,19.226,22.001]
[1688416373265,21.996,19.231,19.227,55.0]
[1688416373841,21.996,19.231,19.227,77.0]
[1688416374667,21.996,19.231,19.222,56.651]
[1688416374957,21.996,19.231,19.225,22.001]
[1688416375140,21.996,19.231,19.226,77.001]
[1688416375338,21.996,19.231,19.226,22.001]
[1688416380144,21.995,19.232,19.226,22.001]
[1688416380362,56.616,19.235,19.228,21.998]
[1688416380555,21.994,19.233,19.229,55.0]
[1688416380861,56.609,19.238,19.23,21.996]
[1688416381061,21.991,19.235,19.232,21.994]
[1688416381849,21.99,19.236,19.232,21.994]
[1688416382764,21.989,19.237,19.232,21.994]
[1688416385165,21.988,19.238,19.232,21.994]
[1688416385855,103.246,19.246,19.232,21.994]
[1688416386051,56.45636843,19.247,19.233,55.0]
[1688416386367,21.983,19.243,19.237,21.988]
[1688416394867,21.983,19.243,19.233,56.62]
[1688416395072,21.983,19.243,19.234,55.0]
[1688416395785,21.983,19.243,19.234,21.991]
[1688416399575,21.983,19.243,19.228,98.3362]
[1688416399576,78.593,19.238,19.228,154.9722]
[1688416401085,21.987,19.238,19.231,21.995]
[1688416402770,21.986,19.239,19.232,55.0]
[1688416402987,21.986,19.24,19.236,21.989]
[1688416404678,21.983,19.242,19.236,21.989]
[1688416404873,21.983,19.242,19.238,21.987]
[1688416406895,21.40324949,19.242,19.238,21.987]
[1688416407100,21.40324949,19.242,19.237,21.987]
[1688416408371,21.40324949,19.242,19.238,76.987]
[1688416409681,21.40324949,19.242,19.238,55.0]
[1688416411102,21.983,19.242,19.238,76.987]
[1688416411476,21.983,19.242,19.238,55.0]
[1688416412093,21.983,19.242,19.238,76.987]
[1688416412596,21.983,19.242,19.238,55.0]
[1688416414590,21.983,19.242,19.237,76.988]
[1688416416988,21.983,19.242,19.237,55.0]
[1688416417499,21.983,19.242,19.237,76.988]
[1688416417892,21.983,19.242,19.237,55.0]
[1688416424000,21.983,19.242,19.236,21.989]
[1688416424304,21.983,19.242,19.235,21.99]
[1688416424600,21.983,19.242,19.236,55.0]
[1688416425614,21.983,19.242,19.236,76.989]
[1688416428009,21.983,19.242,19.236,55.0]
[1688416429110,21.983,19.242,19.236,76.989]
[1688416435500,21.983,19.242,19.236,21.989]
[1688416438405,21.983,19.242,19.235,21.99]
[1688416443402,21.983,19.242,19.23,32.07]
[1688416443403,21.983,19.242,19.234,21.991]
[1688416443710,21.983,19.242,19.233,21.993]
[1688416443908,21.983,19.242,19.23,56.629]
[1688416444096,21.983,19.242,19.228,201.6692]
[1688416444097,32.11,19.24,19.232,21.993]
[1688416444308,78.595,19.238,19.231,21.995]
[1688416444998,78.595,19.238,19.23,21.996]
[1688416453916,21.988,19.238,19.23,21.996]
[1688416454137,21.986,19.24,19.235,21.99]
[1688416455327,21.986,19.24,19.234,21.991]
[1688416461126,21.986,19.24,19.231,56.626]
[1688416461431,21.986,19.24,19.233,21.992]
[1688416463226,21.986,19.24,19.227,103.34]
[1688416463418,21.986,19.24,19.232,21.993]
[1688416463612,54.096,19.24,19.232,21.993]
[1688416463818,54.096,19.24,19.231,21.994]
[1688416464328,21.986,19.24,19.231,21.994]
[1688416476140,21.986,19.24,19.232,55.0]
[1688416476438,21.986,19.24,19.234,21.991]
[1688416490549,36.117965,19.248,19.232,55.0]
[1688416490847,21.986,19.24,19.234,21.991]
[1688416497038,21.986,19.24,19.235,55.0]
[1688416497240,21.986,19.24,19.236,21.989]
[1688416500436,21.986,19.24,19.235,76.99]
[1688416501449,21.986,19.24,19.23,32.07]
[1688416501748,21.986,19.24,19.233,21.992]
[1688416506857,21.986,19.24,19.233,78.613]
[1688416507157,21.986,19.24,19.235,21.99]
[1688416507335,56.583,19.246,19.235,21.99]
[1688416507536,21.98,19.245,19.238,78.591]
[1688416507736,56.577,19.248,19.24,21.984]
[1688416508053,21.979,19.246,19.241,55.0]
[1688416508251,21.979,19.246,19.242,21.982]
[1688416508745,21.978,19.247,19.242,21.982]
[1688416511257,56.563,19.253,19.242,78.576]
[1688416511448,21.974,19.25,19.243,55.0]
[1688416511761,21.974,19.25,19.245,21.979]
[1688416516456,21.972,19.252,19.245,21.979]
[1688416516681,21.972,19.252,19.246,55.0]
[1688416516869,21.972,19.252,19.247,21.976]
[1688416523777,21.972,19.252,19.246,76.977]
[1688416524882,21.972,19.252,19.245,21.979]
[1688416526855,21.972,19.252,19.242,56.593]
[1688416528162,21.972,19.252,19.245,21.979]
[1688416543296,21.972,19.252,19.24,135.344]
[1688416543494,21.972,19.252,19.239,56.602]
[1688416545301,21.972,19.252,19.241,21.983]
[1688416550204,21.972,19.252,19.242,55.0]
[1688416550510,21.972,19.252,19.245,21.979]
[1688416556393,21.972,19.252,19.244,21.979]
[1688416557287,125.182,19.252,19.238,56.605]
[1688416557488,125.182,19.252,19.24,21.984]
[1688416557896,32.31,19.25,19.24,21.984]
[1688416558214,78.557,19.247,19.24,21.984]
[1688416564220,21.977,19.247,19.24,21.984]
[1688416566024,21.977,19.247,19.236,156.0073]
[1688416566315,21.977,19.247,19.24,21.984]
[1688416571321,21.976,19.248,19.24,21.984]
[1688416579733,56.566,19.252,19.241,55.0]
[1688416579928,21.975,19.249,19.244,21.98]
[1688416580129,159.65436843,19.255,19.244,78.569]
[1688416580433,21.972,19.251,19.244,78.569]
[1688416581030,21.972,19.251,19.244,21.98]
[1688416602739,21.972,19.251,19.246,21.977]
[1688416604037,21.972,19.251,19.245,21.978]
[1688416604239,21.972,19.251,19.246,21.978]
[1688416608342,21.972,19.251,19.245,21.978]
[1688416608543,125.187,19.251,19.241,21.983]
[1688416609847,125.187,19.251,19.242,55.0]
[1688416610347,125.187,19.251,19.242,21.982]
[1688416610551,125.187,19.251,19.241,55.0]
[1688416610855,125.187,19.251,19.242,21.983]
[1688416613873,21.972,19.251,19.242,21.983]
[1688416614156,21.972,19.251,19.245,21.979]
[1688416627063,21.972,19.251,19.24,32.07]
[1688416627275,125.187,19.251,19.241,21.983]
[1688416628461,21.972,19.251,19.241,21.983]
[1688416628670,125.187,19.251,19.241,21.983]
[1688416628968,125.187,19.251,19.24,21.984]
[1688416628969,32.11,19.25,19.24,21.984]
[1688416629179,21.977,19.247,19.24,21.984]
[1688416632072,20.0,19.246,19.232,56.623]
[1688416632280,78.578,19.242,19.234,21.991]
[1688416635256,78.578,19.242,19.233,21.992]
[1688416656889,181.841,19.242,19.232,21.994]
[1688416657103,181.841,19.242,19.223,114.19719922]
[1688416657295,32.31,19.24,19.225,76.643]
[1688416657595,78.604,19.236,19.228,21.998]
[1688416657766,78.604,19.236,19.225,76.643]
[1688416659073,78.604,19.236,19.228,21.998]
[1688416663267,21.99,19.236,19.228,21.998]
[1688416666487,21.988,19.238,19.228,21.998]
[1688416666671,181.897,19.236,19.223,22.004]
[1688416666980,181.897,19.236,19.224,22.003]
[1688416667168,10.18182701,19.235,19.223,22.003]
[1688416667367,22.0,19.227,19.222,22.005]
[1688416667578,22.0,19.227,19.221,22.006]
[1688416668876,20.0,19.226,19.213,95.1419]
[1688416669082,22.005,19.223,19.216,22.011]
[1688416669377,22.005,19.223,19.215,22.013]
[1688416672168,22.005,19.223,19.211,56.686]
[1688416672374,125.37,19.223,19.214,22.014]
[1688416672688,125.37,19.223,19.213,22.015]
[1688416677991,125.37,19.223,19.213,21.515]
[1688416678379,125.37,19.223,19.211,56.686]
[1688416678380,125.37,19.223,19.211,22.017]
[1688416694509,55.0,19.222,19.211,22.017]
[1688416694698,78.672,19.219,19.211,22.017]
[1688416695686,78.672,19.219,19.21,22.019]
[1688416695893,78.672,19.219,19.206,56.699]
[1688416696096,78.672,19.219,19.209,22.02]
[1688416696309,78.672,19.219,19.204,56.706]
[1688416696609,55.0,19.218,19.207,22.022]
[1688416696902,78.689,19.215,19.207,22.022]
[1688416697417,78.689,19.215,19.2,135.795]
[1688416697713,55.0,19.214,19.197,103.5]
[1688416697900,78.713,19.209,19.198,56.722]
[1688416698291,78.713,19.209,19.194,56.736]
[1688416698292,182.154,19.209,19.194,56.736]
[1688416698511,182.154,19.209,19.195,20.0]
[1688416699209,182.154,19.209,19.197,22.034]
[1688416701895,22.021,19.209,19.2,32.31]
[1688416702096,22.021,19.209,19.202,22.028]
[1688416702306,22.021,19.209,19.203,55.0]
[1688416702499,22.021,19.209,19.204,22.025]
[1688416702697,22.021,19.209,19.203,22.026]
[1688416702898,22.021,19.209,19.202,22.028]
[1688416703903,22.021,19.209,19.203,55.0]
[1688416704102,86.29935082,19.217,19.204,22.025]
[1688416704311,22.019,19.21,19.205,55.0]
[1688416704496,22.019,19.21,19.205,77.024]
[1688416705201,22.019,19.21,19.205,55.0]
[1688416707913,22.019,19.21,19.205,77.025]
[1688416708227,22.019,19.211,19.205,77.025]
[1688416710216,22.019,19.211,19.205,55.0]
[1688416710520,22.019,19.211,19.205,77.024]
[1688416711210,22.019,19.211,19.205,55.0]
[1688416712307,22.019,19.211,19.205,77.025]
[1688416713623,22.019,19.211,19.205,55.0]
[1688416716937,125.449,19.211,19.205,55.0]
[1688416718135,125.449,19.211,19.204,55.0]
[1688416718632,125.449,19.211,19.204,77.026]
[1688416718928,125.449,19.211,19.204,55.0]
[1688416719340,125.449,19.211,19.203,77.027]
[1688416719923,125.449,19.211,19.203,55.0]
[1688416720307,125.449,19.211,19.203,77.027]
[1688416721618,125.449,19.211,19.203,55.0]
[1688416721926,125.449,19.211,19.202,55.0]
[1688416723329,125.449,19.211,19.202,77.028]
[1688416726121,125.449,19.211,19.201,22.029]
[1688416727620,125.449,19.211,19.202,55.0]
[1688416727813,22.019,19.211,19.204,22.025]
[1688416736236,22.019,19.211,19.202,55.0]
[1688416736434,22.019,19.211,19.201,55.0]
[1688416737130,22.019,19.211,19.204,22.026]
[1688416740045,22.019,19.211,19.201,55.0]
[1688416740254,22.019,19.211,19.201,77.029]
[1688416746454,22.019,19.211,19.201,167.6904]
[1688416751566,125.449,19.211,19.193,43.24368168]
[1688416751868,22.019,19.211,19.201,22.029]
[1688416752050,22.019,19.211,19.201,78.744]
[1688416752851,22.019,19.211,19.202,55.0]
[1688416753155,22.019,19.211,19.204,22.025]
[1688416753455,22.019,19.211,19.205,55.0]
[1688416753755,22.019,19.211,19.206,22.023]
[1688416756635,22.019,19.211,19.203,56.707]
[1688416756834,22.019,19.211,19.205,22.024]
[1688416757350,22.019,19.211,19.204,77.025]
[1688416759359,22.013,19.216,19.204,180.493]
[1688416759661,22.013,19.216,19.208,78.715]
[1688416759843,22.013,19.216,19.211,22.018]
[1688416760448,158.376,19.222,19.211,22.018]
[1688416760754,103.376,19.222,19.211,22.018]
[1688416761156,22.009,19.219,19.211,22.018]
[1688416765453,25.61286661,19.224,19.203,10.83719922]
[1688416765658,22.009,19.219,19.211,22.018]
[1688416765856,22.007,19.221,19.211,22.018]
[1688416766059,22.007,19.221,19.212,55.0]
[1688416766359,22.007,19.221,19.214,78.691]
[1688416767275,22.005,19.223,19.215,55.0]
[1688416767564,22.005,19.223,19.218,22.01]
[1688416767765,22.004,19.224,19.218,22.01]
[1688416770047,22.003,19.225,19.219,55.0]
[1688416770249,32.31,19.23,19.222,22.005]
[1688416770250,22.002,19.226,19.222,22.005]
[1688416770458,22.001,19.227,19.222,22.005]
[1688416771752,22.0,19.228,19.222,22.005]
[1688416771947,21.998,19.23,19.223,55.0]
[1688416772153,21.998,19.23,19.225,22.002]
[1688416776770,21.998,19.23,19.223,22.003]
[1688416784765,26.16401197,19.236,19.22,32.07]
[1688416784975,21.998,19.23,19.223,22.004]
[1688416790077,21.996,19.231,19.223,22.004]
[1688416790382,52.11,19.23,19.211,93.1362]
[1688416790578,182.005,19.225,19.216,22.011]
[1688416790873,246.82470176,19.225,19.211,22.017]
[1688416791063,182.048,19.221,19.21,22.018]
[1688416792383,182.048,19.221,19.211,55.0]
[1688416792573,182.048,19.221,19.212,22.017]
[1688416793174,32.31,19.22,19.212,22.017]
[1688416793374,22.011,19.218,19.211,22.018]
[1688416801706,22.011,19.218,19.206,56.699]
[1688416801990,32.11,19.22,19.207,22.022]
[1688416801991,78.69,19.215,19.207,22.022]
[1688416802179,78.69,19.215,19.201,56.712]
[1688416802379,78.69,19.215,19.203,22.026]
[1688416803595,78.69,19.215,19.206,22.023]
[1688416804389,78.69,19.215,19.204,77.025]